bitfinex/quotes_BTCUSD_20250803
["timestamp","ask_amount","ask_price","bid_price","bid_amount"]
[1754219633267,0.00047505,114440.0,114430.0,0.31943786]
[1754219634388,0.00047505,114440.0,114430.0,0.23455786]
[1754219634625,0.00047505,114440.0,114430.0,0.36995786]
[1754219634849,0.00047505,114440.0,114430.0,0.73895786]
[1754219635062,0.00047505,114440.0,114430.0,0.69495786]
[1754219635271,0.00047505,114440.0,114430.0,0.70697332]
[1754219636355,0.00047505,114440.0,114430.0,0.70997332]
[1754219637296,0.00047505,114440.0,114430.0,0.57457332]
[1754219637497,0.00047505,114440.0,114430.0,0.71065332]
[1754219637711,0.00047505,114440.0,114430.0,0.57457332]
[1754219637951,0.00047505,114440.0,114430.0,0.71069332]
[1754219638371,0.00047505,114440.0,114430.0,0.74166475]
[1754219639854,0.00047505,114440.0,114430.0,0.74170475]
[1754219640816,0.00047505,114440.0,114430.0,0.71666475]
[1754219641021,0.00047505,114440.0,114430.0,0.74166475]
[1754219641673,0.00250505,114440.0,114430.0,0.1640043]
[1754219641884,0.00250505,114440.0,114430.0,0.3001643]
[1754219642089,0.00250505,114440.0,114430.0,0.29661332]
[1754219642338,0.00047505,114440.0,114430.0,0.29984332]
[1754219644723,0.00047505,114440.0,114430.0,0.16368332]
[1754219644957,0.07641505,114440.0,114430.0,0.1339643]
[1754219645167,0.07641505,114440.0,114430.0,0.2701243]
[1754219645432,0.57641505,114440.0,114430.0,0.15521546]
[1754219645665,0.58457567,114440.0,114430.0,0.15521546]
[1754219645889,0.58457567,114440.0,114430.0,0.15233546]
[1754219646342,0.58457567,114440.0,114430.0,0.14833546]
[1754219647025,0.08457567,114440.0,114430.0,0.15133546]
[1754219647240,0.08457567,114440.0,114430.0,0.1741815]
[1754219647438,0.08457775,114440.0,114430.0,0.1761815]
[1754219648137,0.08457775,114440.0,114430.0,0.1741815]
[1754219648369,0.08457775,114440.0,114430.0,0.1711815]
[1754219648590,5.5,114460.0,114430.0,0.17436624]
[1754219648816,0.00203,114440.0,114430.0,0.03908624]
[1754219649035,0.00203,114440.0,114430.0,0.1524402]
[1754219649243,0.00203,114440.0,114430.0,0.1374402]
[1754219649455,0.00203,114440.0,114430.0,0.13862494]
[1754219649891,0.00203,114440.0,114430.0,0.13858494]
[1754219650555,0.07291,114440.0,114430.0,0.13834474]
[1754219650765,0.07291,114440.0,114430.0,0.15967321]
[1754219651019,0.07291,114440.0,114430.0,0.02351321]
[1754219651251,0.07291,114440.0,114430.0,0.21001474]
[1754219651529,0.57102243,114460.0,114430.0,0.30186284]
[1754219651714,0.57102243,114460.0,114430.0,0.30286284]
[1754219651953,0.07088,114450.0,114430.0,0.30386284]
[1754219652363,0.00198,114440.0,114430.0,0.30286284]
[1754219652805,0.50237243,114460.0,114430.0,0.30286284]
[1754219652806,0.50223,114460.0,114430.0,0.30186284]
[1754219653683,0.50323,114460.0,114430.0,0.30186284]
[1754219654465,0.50323,114460.0,114440.0,0.07167]
[1754219654696,0.52221,114460.0,114440.0,0.0749]
[1754219654917,0.001,114460.0,114440.0,0.14996653]
[1754219655139,0.001,114460.0,114440.0,0.23859937]
[1754219655336,0.001,114460.0,114440.0,0.23641482]
[1754219655576,0.02384474,114470.0,114450.0,0.00218435]
[1754219655802,0.0004,114460.0,114450.0,0.00218435]
[1754219657390,0.0014,114460.0,114450.0,0.00218435]
[1754219657828,0.01387975,114490.0,114450.0,0.07385435]
[1754219658043,4.904871,114470.0,114450.0,0.23411151]
[1754219658229,4.904871,114470.0,114450.0,0.09532716]
[1754219658402,4.904871,114470.0,114450.0,0.09751151]
[1754219659575,4.904871,114470.0,114450.0,0.02365716]
[1754219660395,4.904871,114470.0,114450.0,0.09751151]
[1754219660632,0.00817765,114470.0,114450.0,0.09532716]
[1754219660831,0.00917765,114470.0,114450.0,0.09532716]
[1754219661432,0.00917765,114470.0,114450.0,0.09751151]
[1754219661816,0.00917765,114470.0,114450.0,0.10074151]
[1754219662483,0.00917765,114470.0,114450.0,0.09855716]
[1754219663491,0.00917765,114470.0,114450.0,0.10074151]
[1754219663901,0.14565765,114470.0,114450.0,0.10074151]
[1754219664540,0.14565765,114470.0,114450.0,0.06474151]
[1754219665000,0.15799765,114470.0,114450.0,0.06474151]
[1754219665702,0.15799765,114470.0,114450.0,0.06255716]
[1754219666190,0.15799765,114470.0,114450.0,0.06474151]
[1754219666837,5.417211,114460.0,114440.0,0.14252441]
[1754219667054,0.52051765,114460.0,114440.0,0.14252441]
[1754219667252,0.52051765,114460.0,114440.0,0.14575441]
[1754219667825,0.50817765,114460.0,114440.0,0.14575441]
[1754219669513,0.64449765,114460.0,114440.0,0.07408441]
[1754219669715,0.64449765,114460.0,114450.0,0.07226]
[1754219670973,0.64445765,114460.0,114450.0,0.07226]
[1754219671178,0.50817765,114460.0,114450.0,0.0755]
[1754219671390,0.64441765,114460.0,114450.0,0.0755]
[1754219671592,0.64445765,114460.0,114450.0,0.0395]
[1754219672057,0.19659765,114460.0,114440.0,0.07409441]
[1754219672301,0.14445765,114460.0,114440.0,0.07085441]
[1754219672468,0.64447359,114460.0,114450.0,0.00324]
[1754219672887,0.64389941,114460.0,114450.0,0.00324]
[1754219673481,0.14439359,114460.0,114450.0,0.07746]
[1754219673887,0.6362,114460.0,114450.0,0.07226]
[1754219674262,0.5,114460.0,114450.0,0.0755]
[1754219674467,0.13616,114460.0,114450.0,0.07746]
[1754219675143,0.13616,114460.0,114450.0,0.0755]
[1754219675355,0.13616,114460.0,114450.0,0.07746]
[1754219675564,0.13616,114460.0,114450.0,0.07644849]
[1754219675778,0.35620112,114480.0,114450.0,0.07644849]
[1754219675979,4.904871,114470.0,114460.0,0.00324]
[1754219676183,4.904871,114480.0,114460.0,0.00324]
[1754219676420,0.13628,114470.0,114460.0,0.0052]
[1754219677413,5.041151,114470.0,114460.0,0.0052]
[1754219677621,0.5,114480.0,114460.0,0.07746]
[1754219677822,5.041151,114480.0,114470.0,0.00324]
[1754219678028,5.041151,114480.0,114470.0,0.0755]
[1754219678638,5.043381,114480.0,114470.0,0.0545]
[1754219678868,5.044381,114480.0,114470.0,0.0545]
[1754219680675,4.904871,114470.0,114460.0,0.07226]
[1754219680894,4.904871,114470.0,114460.0,0.07746]
[1754219681615,0.00215,114470.0,114460.0,0.07746]
[1754219682285,0.00215,114470.0,114450.0,0.13952]
[1754219682501,0.00481,114470.0,114450.0,0.21178]
[1754219682969,0.00481,114470.0,114460.0,0.07226]
[1754219682970,0.00215,114470.0,114460.0,0.07226]
[1754219685419,0.00215,114470.0,114460.0,0.0755]
[1754219685659,0.00215,114470.0,114460.0,0.07746]
[1754219685876,0.00215,114470.0,114460.0,0.05646]
[1754219686802,0.00215,114470.0,114450.0,0.13628]
[1754219687027,0.04609,114470.0,114450.0,0.13952]
[1754219687626,0.04609,114470.0,114450.0,0.00324]
[1754219687786,0.00215,114470.0,114450.0,0.0755]
[1754219689191,0.00215,114470.0,114460.0,0.07591198]
[1754219689635,0.00215,114470.0,114460.0,0.14817198]
[1754219690069,4.950961,114470.0,114440.0,0.10037041]
[1754219690271,0.04609,114470.0,114450.0,0.0755]
[1754219690695,0.00198,114470.0,114450.0,0.0755]
[1754219691119,0.01017615,114470.0,114450.0,0.0755]
[1754219691527,0.01017615,114470.0,114450.0,0.21186]
[1754219691738,0.51017615,114470.0,114460.0,0.07226]
[1754219692171,0.51017615,114470.0,114460.0,0.07422]
[1754219692389,0.01018615,114470.0,114460.0,0.07746]
[1754219692658,0.63632,114480.0,114460.0,0.07746]
[1754219692863,4.904871,114470.0,114460.0,0.07591198]
[1754219693928,5.042191,114480.0,114460.0,0.07591198]
[1754219694111,4.904871,114470.0,114460.0,0.07591198]
[1754219694883,4.904871,114470.0,114460.0,0.14817198]
[1754219698531,4.904871,114480.0,114460.0,0.14817198]
[1754219698733,4.904871,114470.0,114460.0,0.14817198]
[1754219698956,4.904871,114480.0,114460.0,0.14817198]
[1754219699164,4.91306766,114480.0,114460.0,0.14817198]
[1754219699378,4.904871,114470.0,114460.0,0.14817198]
[1754219699577,4.904871,114480.0,114460.0,0.14817198]
[1754219699777,4.904871,114470.0,114460.0,0.14817198]
[1754219699978,0.00214,114470.0,114460.0,0.10629198]
[1754219700413,0.00214,114470.0,114460.0,0.07438]
[1754219700618,0.00526,114470.0,114460.0,0.07438]
[1754219701225,4.904871,114470.0,114460.0,0.07438]
[1754219702009,0.00526,114470.0,114460.0,0.07226]
[1754219702223,0.01345906,114470.0,114460.0,0.20954]
[1754219702454,0.01345906,114470.0,114440.0,0.10034041]
[1754219702656,4.907991,114460.0,114450.0,0.13728]
[1754219702863,4.904871,114450.0,114440.0,0.20891243]
[1754219703068,0.00526,114450.0,114440.0,0.07163243]
[1754219703267,0.00526,114450.0,114440.0,0.20891243]
[1754219703543,0.00526,114450.0,114440.0,0.13750243]
[1754219703753,0.00704,114450.0,114440.0,0.00014243]
[1754219703983,5.27368539,114450.0,114440.0,0.00014243]
[1754219704206,5.37072233,114450.0,114440.0,0.00014243]
[1754219704690,5.34894794,114450.0,114440.0,0.00114243]
[1754219704888,5.37072233,114450.0,114440.0,0.00114243]
[1754219705112,5.38710513,114450.0,114440.0,0.00114243]
[1754219705330,5.37072233,114450.0,114440.0,0.00114243]
[1754219705540,5.3870906,114450.0,114440.0,0.00114243]
[1754219705764,5.4370906,114450.0,114440.0,0.00114243]
[1754219705988,5.4370906,114450.0,114440.0,0.00214243]
[1754219706211,5.4370906,114450.0,114440.0,0.00114243]
[1754219706853,5.41531621,114450.0,114440.0,0.00114243]
[1754219707073,4.904871,114410.0,114400.0,0.05589441]
[1754219707294,5.044451,114410.0,114400.0,0.12785946]
[1754219707508,5.047571,114410.0,114400.0,0.12785946]
[1754219709245,5.047571,114410.0,114400.0,0.12885946]
[1754219709453,5.047571,114410.0,114400.0,0.12985946]
[1754219710897,5.047571,114410.0,114400.0,0.12885946]
[1754219711762,4.910131,114410.0,114400.0,0.12885946]
[1754219712005,4.910131,114410.0,114400.0,0.12785946]
[1754219712006,5.048051,114410.0,114400.0,0.12785946]
[1754219712333,5.049831,114410.0,114400.0,0.00047505]
[1754219712573,5.50044295,114410.0,114400.0,0.00047505]
[1754219712789,5.26559941,114410.0,114400.0,0.00047505]
[1754219712999,5.40351941,114410.0,114400.0,0.00030714]
[1754219713216,5.42981641,114410.0,114400.0,0.00030714]
[1754219713431,5.43796314,114410.0,114400.0,0.00030714]
[1754219713653,5.5268007,114410.0,114400.0,0.00030714]
[1754219715228,5.51411229,114410.0,114400.0,0.00030714]
[1754219715683,5.56088668,114410.0,114400.0,0.00030714]
[1754219715905,5.57616658,114410.0,114400.0,0.00030714]
[1754219716615,5.57916658,114410.0,114400.0,0.00030714]
[1754219717338,5.60416658,114410.0,114400.0,0.00030714]
[1754219717876,5.58239219,114410.0,114400.0,0.00030714]
[1754219718347,5.59608224,114410.0,114400.0,0.00017242]
[1754219719257,5.62187434,114410.0,114400.0,0.00017242]
[1754219723286,5.27483434,114410.0,114400.0,0.00017242]
[1754219723462,5.27586434,114410.0,114400.0,0.00017242]
[1754219724528,0.37099334,114410.0,114380.0,0.1353744]
[1754219724786,4.904871,114390.0,114380.0,0.13872694]
[1754219724987,5.05224773,114390.0,114380.0,0.13872694]
[1754219725390,4.91404773,114390.0,114380.0,0.13872694]
[1754219725713,4.91301773,114390.0,114380.0,0.14084694]
[1754219725938,5.07755773,114390.0,114380.0,0.14084694]
[1754219726378,5.13309641,114390.0,114380.0,0.14084694]
[1754219726813,5.07751773,114390.0,114380.0,0.14084694]
[1754219728386,4.93931773,114390.0,114380.0,0.14184694]
[1754219728635,4.91301773,114390.0,114380.0,0.14284694]
[1754219729095,0.00814673,114390.0,114380.0,0.14284694]
[1754219729317,0.00814673,114390.0,114380.0,0.16029596]
[1754219729773,0.00814673,114390.0,114380.0,0.29841596]
[1754219730208,0.00814673,114390.0,114380.0,0.28096694]
[1754219731529,0.00814673,114390.0,114380.0,0.17308254]
[1754219733559,0.00814673,114390.0,114380.0,0.2791644]
[1754219734002,0.01,114410.0,114380.0,0.2791644]
[1754219734298,0.01816952,114410.0,114400.0,0.01744902]
[1754219734513,0.01816952,114410.0,114400.0,0.24424186]
[1754219734742,0.01816952,114410.0,114400.0,0.32621186]
[1754219734952,0.01817005,114410.0,114400.0,0.32621186]
[1754219736377,0.01817005,114410.0,114400.0,0.33021186]
[1754219736837,0.01817005,114410.0,114400.0,0.10341902]
[1754219737053,0.01817005,114410.0,114400.0,0.22409]
[1754219737370,0.01817005,114410.0,114400.0,0.23009]
[1754219737792,0.01816756,114410.0,114400.0,0.22609]
[1754219738219,0.01816756,114410.0,114400.0,0.22809]
[1754219738644,0.01816756,114410.0,114400.0,0.19709]
[1754219738877,0.01816756,114410.0,114400.0,0.19317]
[1754219739053,0.01816756,114410.0,114400.0,0.19417]
[1754219739291,0.01816756,114410.0,114400.0,0.19517]
[1754219741432,0.01816756,114410.0,114400.0,0.19501]
[1754219745817,0.01816756,114410.0,114400.0,0.16301]
[1754219746233,0.01816756,114410.0,114400.0,0.16305]
[1754219750206,0.01816432,114410.0,114400.0,0.16305]
[1754219750838,0.01,114410.0,114400.0,0.16305]
[1754219752801,0.01,114410.0,114400.0,0.14605]
[1754219754579,0.01,114410.0,114400.0,0.00809]
[1754219754818,0.01,114410.0,114400.0,0.14581]
[1754219759750,0.01,114410.0,114400.0,0.12981]
[1754219759985,0.01,114410.0,114400.0,0.13188]
[1754219761057,0.01,114410.0,114400.0,0.00207]
[1754219761287,0.01,114410.0,114390.0,0.13932]
[1754219761288,4.904871,114400.0,114390.0,0.13932]
[1754219761494,0.0755,114400.0,114390.0,0.13932]
[1754219761703,5.36805717,114400.0,114390.0,0.13932]
[1754219762759,5.36805717,114400.0,114390.0,0.001]
[1754219762967,5.35407847,114400.0,114380.0,0.00018254]
[1754219763168,5.318341,114390.0,114380.0,0.13982254]
[1754219763442,5.320371,114390.0,114380.0,0.13982254]
[1754219765341,5.320371,114390.0,114380.0,0.00018254]
[1754219765549,5.320371,114390.0,114380.0,0.00118254]
[1754219765770,5.43550756,114390.0,114380.0,0.00118254]
[1754219766432,5.43550756,114390.0,114380.0,0.00218254]
[1754219766793,5.34667,114390.0,114380.0,0.00218254]
[1754219767004,5.244871,114380.0,114370.0,0.12474254]
[1754219767294,0.4155,114380.0,114370.0,0.12474254]
[1754219767496,4.980371,114380.0,114360.0,0.06982]
[1754219767700,4.904871,114370.0,114360.0,0.14006257]
[1754219767813,0.5755,114370.0,114360.0,0.14006257]
[1754219768223,0.0755,114370.0,114360.0,0.14006257]
[1754219768919,0.5755,114370.0,114360.0,0.14006257]
[1754219769753,0.5755,114370.0,114360.0,0.14106257]
[1754219771089,4.79147,114370.0,114360.0,0.21088257]
[1754219771299,0.00203,114370.0,114360.0,0.21088257]
[1754219771737,0.50203,114370.0,114360.0,0.21088257]
[1754219772283,0.50203,114370.0,114360.0,0.21079862]
[1754219772527,0.50203,114370.0,114360.0,0.21071466]
[1754219773890,0.50203,114370.0,114360.0,0.21075466]
[1754219774086,0.50203,114370.0,114360.0,0.18875466]
[1754219774530,0.50203,114370.0,114360.0,0.21204257]
[1754219775777,0.50203,114370.0,114360.0,0.21196257]
[1754219775989,0.528331,114370.0,114360.0,0.21196257]
[1754219778081,0.528331,114370.0,114360.0,0.21513257]
[1754219778498,0.528331,114370.0,114360.0,0.21720257]
[1754219778746,0.5,114380.0,114360.0,0.21720257]
[1754219778962,0.5,114380.0,114360.0,0.14421257]
[1754219778963,4.79147,114370.0,114360.0,0.14421257]
[1754219779395,0.026299,114380.0,114360.0,0.14421257]
[1754219779600,4.93223,114390.0,114370.0,0.07299]
[1754219779820,4.79147,114380.0,114370.0,0.06982]
[1754219780249,4.79147,114380.0,114370.0,0.07189]
[1754219780492,0.001,114380.0,114370.0,0.07506]
[1754219781227,4.79147,114390.0,114370.0,0.07506]
[1754219781457,4.62036042,114390.0,114370.0,0.07189]
[1754219781677,4.620361,114390.0,114380.0,0.00317]
[1754219781889,4.620361,114390.0,114380.0,0.00324]
[1754219782106,4.620361,114390.0,114380.0,0.07306]
[1754219782318,4.622391,114390.0,114380.0,0.07306]
[1754219782529,4.622391,114390.0,114380.0,0.03113]
[1754219782773,0.00203,114390.0,114380.0,0.03113]
[1754219782989,0.50303,114390.0,114380.0,0.03113]
[1754219783239,0.00403,114390.0,114380.0,0.03113]
[1754219783453,0.00303,114390.0,114380.0,0.03113]
[1754219783981,0.50605,114390.0,114380.0,0.03113]
[1754219784200,0.00605,114390.0,114380.0,0.03113]
[1754219784417,4.620361,114380.0,114360.0,0.00018257]
[1754219784632,0.00203,114370.0,114360.0,0.00018257]
[1754219784846,0.0755,114370.0,114360.0,0.00018257]
[1754219785056,0.0755,114370.0,114360.0,0.07000257]
[1754219785300,0.00505,114370.0,114360.0,0.07000257]
[1754219785949,0.00505,114370.0,114360.0,0.07200257]
[1754219786159,0.00505,114370.0,114360.0,0.07500257]
[1754219786381,0.10997774,114370.0,114360.0,0.00518257]
[1754219786595,0.10997774,114370.0,114360.0,0.00018257]
[1754219787012,0.10997774,114370.0,114360.0,0.00118257]
[1754219787209,0.13627974,114370.0,114360.0,0.00118257]
[1754219787861,0.13627974,114370.0,114360.0,0.00218257]
[1754219789103,0.601802,114370.0,114360.0,0.00218257]
[1754219789516,0.601802,114370.0,114350.0,0.06300257]
[1754219790361,4.620361,114360.0,114350.0,0.06300257]
[1754219790612,0.00527,114360.0,114350.0,0.06507257]
[1754219790828,0.50527,114360.0,114350.0,0.06507257]
[1754219791212,0.50527,114360.0,114350.0,0.06607257]
[1754219791433,0.50527,114360.0,114350.0,0.06507257]
[1754219791842,0.5021,114360.0,114350.0,0.06707257]
[1754219793109,0.5021,114360.0,114350.0,0.06807257]
[1754219793540,4.620361,114360.0,114350.0,0.07121257]
[1754219794608,4.425628,114360.0,114350.0,0.07121257]
[1754219795684,4.450628,114360.0,114340.0,0.14]
[1754219796047,0.52817,114360.0,114340.0,0.14218646]
[1754219796582,0.52817,114360.0,114340.0,0.12518646]
[1754219796802,0.52817,114360.0,114340.0,0.14210646]
[1754219797183,0.52817,114360.0,114350.0,4e-05]
[1754219797381,0.53027,114360.0,114350.0,4e-05]
[1754219797584,0.60053,114360.0,114350.0,4e-05]
[1754219797838,0.60053,114360.0,114350.0,0.06932]
[1754219798698,4.30805,114360.0,114350.0,0.07139]
[1754219798978,4.31015,114360.0,114350.0,0.07239]
[1754219799186,0.0021,114360.0,114350.0,0.07239]
[1754219799392,0.0021,114360.0,114350.0,0.07339]
[1754219800941,0.5021,114360.0,114350.0,0.07339]
[1754219801145,0.52174617,114360.0,114350.0,0.07339]
[1754219802309,0.02174617,114360.0,114350.0,0.07339]
[1754219802531,0.52174617,114360.0,114350.0,0.07339]
[1754219802993,0.02174617,114360.0,114350.0,0.07339]
[1754219803632,0.02174617,114360.0,114350.0,0.06339]
[1754219803834,0.02491617,114360.0,114350.0,0.06339]
[1754219809653,0.02491617,114360.0,114350.0,0.06132]
[1754219810436,0.02491617,114360.0,114350.0,0.06339]
[1754219810849,0.02491617,114360.0,114350.0,0.05639]
[1754219812663,0.02491617,114360.0,114350.0,0.05643]
[1754219813535,0.52491617,114360.0,114350.0,0.05643]
[1754219814378,0.59517617,114360.0,114350.0,0.05436]
[1754219815016,0.16862579,114360.0,114350.0,0.00204]
[1754219815227,0.59517617,114360.0,114350.0,4e-05]
[1754219815442,0.02491617,114360.0,114350.0,0.06932]
[1754219815674,0.52491617,114360.0,114350.0,0.06932]
[1754219816540,0.09517617,114360.0,114350.0,0.06932]
[1754219816750,0.59517617,114360.0,114350.0,0.06932]
[1754219817824,0.59517617,114360.0,114350.0,0.06032]
[1754219820457,0.52491617,114360.0,114350.0,0.06229]
[1754219823927,0.05534526,114360.0,114350.0,0.06229]
[1754219824551,0.52491617,114360.0,114350.0,0.06229]
[1754219824759,0.52491617,114360.0,114350.0,0.04832]
[1754219824760,0.60386617,114360.0,114350.0,0.04832]
[1754219825167,0.60386617,114360.0,114340.0,0.14206]
[1754219826893,0.60386617,114360.0,114340.0,0.22001]
[1754219827307,0.74266617,114360.0,114350.0,0.07795]
[1754219827515,0.24266617,114360.0,114350.0,0.07795]
[1754219828910,0.10386617,114360.0,114350.0,0.07795]
[1754219829103,0.60386617,114360.0,114350.0,0.07795]
[1754219829413,0.10386617,114360.0,114340.0,0.22001]
[1754219829602,0.60386617,114360.0,114340.0,0.22001]
[1754219830153,0.60386617,114360.0,114350.0,0.07795]
[1754219831973,0.60386617,114360.0,114350.0,0.06295]
[1754219833241,0.60386617,114360.0,114350.0,0.06299]
[1754219836543,0.10386617,114360.0,114350.0,0.06299]
[1754219836692,0.60386617,114360.0,114350.0,0.06299]
[1754219837892,0.0399929,114380.0,114350.0,0.06802]
[1754219837893,0.1219329,114380.0,114350.0,0.06802]
[1754219838094,0.1219329,114380.0,114360.0,0.00306]
[1754219838095,0.22046445,114380.0,114360.0,0.00306]
[1754219838567,0.24016523,114380.0,114360.0,0.00306]
[1754219838783,0.58016523,114380.0,114370.0,0.07795]
[1754219838985,0.58229523,114380.0,114370.0,0.07795]
[1754219839398,0.58529523,114380.0,114370.0,0.07795]
[1754219839614,0.58729523,114380.0,114370.0,0.07795]
[1754219839813,0.58429523,114380.0,114370.0,0.07795]
[1754219840208,0.58425523,114380.0,114370.0,0.07795]
[1754219841402,0.58425523,114380.0,114360.0,0.08101]
[1754219841609,0.58126523,114380.0,114360.0,0.06201]
[1754219841768,0.00299,114370.0,114360.0,0.06201]
[1754219841972,0.00299,114370.0,114360.0,0.06398]
[1754219842432,0.00512,114370.0,114360.0,0.06398]
[1754219842636,0.08407,114370.0,114360.0,0.06398]
[1754219848686,0.08407,114370.0,114360.0,0.04998]
[1754219850597,0.08108,114370.0,114360.0,0.04998]
[1754219850851,0.1386,114380.0,114360.0,0.0532]
[1754219852144,0.1406,114380.0,114360.0,0.0532]
[1754219852711,0.21785,114380.0,114360.0,0.0532]
[1754219855441,0.00209,114370.0,114360.0,0.0532]
[1754219855664,0.00209,114370.0,114360.0,0.0332]
[1754219857673,0.00209,114370.0,114360.0,0.03324]
[1754219859071,0.21485,114380.0,114360.0,0.03324]
[1754219860898,0.15982611,114380.0,114360.0,0.03324]
[1754219861349,0.16182611,114380.0,114360.0,0.03324]
[1754219861580,0.16282611,114380.0,114360.0,0.03324]
[1754219862713,0.16282611,114380.0,114360.0,0.01324]
[1754219862934,0.16152611,114380.0,114360.0,0.01324]
[1754219864086,0.55689,114380.0,114360.0,0.01324]
[1754219864306,0.13764,114380.0,114360.0,0.00523]
[1754219864520,0.1376,114380.0,114360.0,0.0761]
[1754219864735,0.03998758,114390.0,114360.0,0.0761]
[1754219864949,4.30805,114380.0,114360.0,0.07622445]
[1754219865203,0.13756,114380.0,114360.0,0.07622445]
[1754219865450,4.30805,114380.0,114360.0,0.07622445]
[1754219866091,0.13756,114380.0,114360.0,0.07622445]
[1754219866336,4.3725,114380.0,114360.0,0.07622445]
[1754219866562,0.06445,114380.0,114360.0,0.07622445]
[1754219866986,0.06845,114380.0,114360.0,0.07622445]
[1754219869928,0.00209,114370.0,114360.0,0.05418445]
[1754219870135,0.00521,114370.0,114360.0,0.05418445]
[1754219871271,0.00209,114370.0,114360.0,0.05418445]
[1754219873929,0.030387,114370.0,114360.0,0.05418445]
[1754219876930,0.030387,114370.0,114360.0,0.03518445]
[1754219878020,0.033507,114370.0,114360.0,0.03518445]
[1754219882673,0.028297,114370.0,114360.0,0.03837445]
[1754219882878,0.002,114370.0,114360.0,0.04056052]
[1754219883086,0.002,114370.0,114360.0,0.05800954]
[1754219884130,0.002,114370.0,114360.0,0.02600954]
[1754219886355,0.08222,114370.0,114360.0,0.13732445]
[1754219886782,0.08222,114370.0,114360.0,0.00012445]
[1754219887206,0.08022,114370.0,114360.0,0.00012445]
[1754219887423,0.08222,114370.0,114360.0,0.00012445]
[1754219887850,0.08022,114370.0,114360.0,0.00012445]
[1754219888062,0.107518,114370.0,114360.0,0.00012445]
[1754219889370,0.106518,114370.0,114360.0,0.00012445]
[1754219889795,0.108518,114370.0,114360.0,0.00012445]
[1754219891127,0.108518,114370.0,114350.0,0.18428445]
[1754219891352,0.03346259,114370.0,114350.0,0.18428445]
[1754219891593,0.07518,114360.0,114350.0,0.18428445]
[1754219891827,0.07518,114360.0,114350.0,0.04919445]
[1754219892050,0.07726,114360.0,114350.0,0.18627445]
[1754219892290,0.07726,114360.0,114350.0,0.18619445]
[1754219894051,0.07726,114360.0,114350.0,0.04919445]
[1754219894278,0.08022,114360.0,114350.0,0.137]
[1754219894502,0.58022,114360.0,114340.0,0.20992]
[1754219894738,0.07814,114350.0,114340.0,0.13688]
[1754219894950,0.08022,114350.0,114340.0,0.13688]
[1754219895846,0.08022,114350.0,114340.0,0.13888]
[1754219896289,0.08022,114350.0,114340.0,0.13688]
[1754219896723,0.08022,114350.0,114340.0,0.13788]
[1754219896953,0.08022,114350.0,114340.0,0.13688]
[1754219897811,0.08022,114350.0,114340.0,0.13788]
[1754219898235,0.08022,114350.0,114340.0,0.10788]
[1754219899825,0.08022,114350.0,114340.0,0.18092]
[1754219900711,0.08022,114350.0,114340.0,0.18291]
[1754219901766,0.08022,114350.0,114340.0,0.001]
[1754219901979,0.08022,114350.0,114340.0,0.1382]
[1754219902188,0.14133878,114350.0,114340.0,0.1382]
[1754219902400,4.414574,114350.0,114340.0,0.001]
[1754219903482,4.43026786,114350.0,114340.0,0.001]
[1754219903933,4.42826786,114350.0,114340.0,0.001]
[1754219904158,4.45696579,114350.0,114340.0,0.001]
[1754219904369,4.4651619,114350.0,114340.0,0.001]
[1754219904607,4.55099946,114350.0,114340.0,0.001]
[1754219904823,4.89099946,114350.0,114340.0,0.001]
[1754219905254,4.30805,114340.0,114310.0,0.27191198]
[1754219905470,0.00208,114320.0,114310.0,0.27390198]
[1754219906786,0.00208,114320.0,114310.0,0.27704458]
[1754219906999,0.08022,114320.0,114310.0,0.2152926]
[1754219907243,0.08022,114320.0,114310.0,0.1401826]
[1754219907449,0.606531,114320.0,114310.0,0.0031426]
[1754219908101,0.106531,114320.0,114310.0,0.0031426]
[1754219908540,0.106531,114320.0,114310.0,0.0041426]
[1754219908965,0.6671841,114320.0,114310.0,0.0031426]
[1754219909162,4.4752341,114320.0,114310.0,0.0001426]
[1754219909625,4.334361,114320.0,114310.0,0.0032626]
[1754219909852,0.5,114320.0,114310.0,0.0837726]
[1754219910067,4.30805,114320.0,114310.0,0.0805526]
[1754219910285,0.08036,114320.0,114310.0,0.0805526]
[1754219910912,0.07743,114320.0,114310.0,0.0805526]
[1754219911353,4.30805,114320.0,114310.0,0.0837726]
[1754219912339,4.30805,114320.0,114310.0,0.0386726]
[1754219913588,0.02631,114320.0,114310.0,0.0386726]
[1754219913789,0.52631,114320.0,114310.0,0.0386726]
[1754219914112,0.60162,114320.0,114310.0,0.0386726]
[1754219914744,0.60455,114320.0,114310.0,0.0386726]
[1754219915664,0.10455,114320.0,114310.0,0.0386726]
[1754219915875,0.60455,114320.0,114310.0,0.0386726]
[1754219916298,4.30805,114320.0,114310.0,0.04369963]
[1754219916505,0.13696,114330.0,114310.0,0.04369963]
[1754219916719,0.738578,114330.0,114310.0,0.04369963]
[1754219916949,0.604548,114330.0,114310.0,0.04369963]
[1754219917646,0.604548,114330.0,114320.0,0.01744902]
[1754219917647,0.026308,114330.0,114320.0,0.01744902]
[1754219917877,0.001,114330.0,114320.0,0.23673902]
[1754219918528,4.30805,114340.0,114320.0,0.32537186]
[1754219918775,4.334352,114350.0,114320.0,0.24524186]
[1754219918990,0.101612,114350.0,114330.0,0.08013]
[1754219919209,0.104542,114350.0,114330.0,0.08031665]
[1754219919432,0.104542,114350.0,114330.0,0.03631665]
[1754219920541,0.104542,114350.0,114340.0,0.00212]
[1754219921192,0.106662,114350.0,114340.0,0.00212]
[1754219922263,0.106662,114350.0,114340.0,0.00312]
[1754219923220,0.08900396,114360.0,114340.0,0.22694902]
[1754219923435,0.11823396,114360.0,114340.0,0.22694902]
[1754219923637,0.11823396,114360.0,114340.0,0.22410902]
[1754219924501,0.07531,114350.0,114340.0,0.15756902]
[1754219925387,0.07531,114350.0,114340.0,0.15975548]
[1754219925817,0.07531,114350.0,114340.0,0.16075548]
[1754219926452,0.07531,114350.0,114340.0,0.13283684]
[1754219926668,0.07824,114350.0,114340.0,0.11790548]
[1754219927516,0.1368,114380.0,114340.0,0.19519548]
[1754219927724,4.33435,114370.0,114340.0,0.19300902]
[1754219927941,4.30805,114360.0,114340.0,0.19300902]
[1754219928590,4.30805,114360.0,114340.0,0.19200902]
[1754219929643,0.07824,114360.0,114340.0,0.19200902]
[1754219931189,0.07924,114360.0,114340.0,0.19200902]